Cogmind - Beta 13 @@@ ROGUE MODE // 2024.03.10 @ 09:26:05 Player: Dosh Result: Self-destructed Performance ------------- Evolutions (2) 1000 Regions Visited (4) 800 Robots Destroyed (123) 615 Value Destroyed (4133) 4133 Prototype IDs (5) 100 Alien Tech Used (0) 0 Bonus (1580) 1580 TOTAL SCORE: 8228 Bonus ------- High Alert Combat Kills 880 Entered Garrisons 200 Used RIF Installer 500 Cogmind --------- Core Integrity 156/550 Matter 295/300 Energy 100/100 System Corruption 5% Temperature Cool (0) Movement Treading (160) Location -8/Garrison Parts ------- > --- POWER (1) -------- (None) > --- PROPULSION (3) --- Light Treads > --- UTILITY (5) ------ Light Armor Plating > --- WEAPON (2) ------- (None) > --- INVENTORY (5) ---- Structural Scanner Seismic Detector Melee Analysis Suite Hardened Light Armor Plating Long-range Tractor Beam Peak State ------------ > --- POWER ------------ Heavy Ion Engine > --- PROPULSION ------- Light Treads Light Treads Light Treads > --- UTILITY ---------- High-capacity Storage Unit Advanced Targeting Computer Improved Light Armor Plating Improved Light Armor Plating Reflective Plating > --- WEAPON ----------- Improved EM Pulse Cannon Advanced Assault Cannon > --- INVENTORY -------- Deuterium Engine Light Treads Light Treads Improved Heat Sink Huge Storage Unit Structural Scanner Seismic Detector Hardened Light Armor Plating Improved Light Armor Plating Hacking Suite Hacking Suite Hacking Suite System Shield Authchip [Propulsion] Authchip [Device] Long-range Tractor Beam Advanced Assault Cannon Advanced Assault Cannon Missile Launcher Makeshift Axe [Rating: 32] Favorites ----------- Power Ion Engine Engine Ion Engine Propulsion Light Treads Treads Light Treads Wheel Wheel Flight Unit Improved VTOL Module Utility Improved Light Armor Plating Device Structural Scanner Storage Large Storage Unit Processor Advanced Targeting Computer Hackware Hacking Suite Protection Improved Light Armor Plating Weapon Light Cannon Energy Gun Medium Laser Energy Cannon Improved EM Pulse Cannon Ballistic Gun Light Assault Rifle Ballistic Cannon Light Cannon Launcher Subdweller Shrapnel Launcher Special Weapon Mining Laser Slashing Weapon Makeshift Axe Build | -11 -10 -10 -8 -8 ------- Run | Yrd Mat Sub Mat Gar Slots Evolved 4 | . . . 4 . Power . | . . . . . Propulsion 1 | . . . 1 . Utility 3 | . . . 3 . Weapon . | . . . . . Parts Attached 92 | 7 8 25 36 16 Power 8 | 1 . 4 3 . Engine 8 | 1 . 4 3 . Core . | . . . . . Reactor . | . . . . . Propulsion 19 | 2 2 2 8 5 Treads 16 | 2 2 2 5 5 Leg . | . . . . . Wheel 2 | . . . 2 . Hover . | . . . . . Flight 1 | . . . 1 . Utility 29 | 2 3 7 10 7 Device 6 | 1 . 3 2 . Storage 6 | 1 1 1 1 2 Processor 2 | . . . 2 . Hackware 1 | . . . . 1 Protection 14 | . 2 3 5 4 Artifact . | . . . . . Weapon 36 | 2 3 12 15 4 Energy Gun 1 | 1 . . . . Energy Cannon 1 | . . . 1 . Ballistic Gun 2 | 1 1 . . . Ballistic Cannon 18 | . 2 6 8 2 Launcher 4 | . . . 3 1 Special Weapon 4 | . . 4 . . Impact Weapon . | . . . . . Slashing Weapon 6 | . . 2 3 1 Piercing Weapon . | . . . . . Special Melee Weapon . | . . . . . Unidentified Prototypes 2 | . . . 2 . Parts Lost 29 | . 1 7 8 13 Power 5 | . . 3 1 1 Propulsion 8 | . . 2 1 5 Utility 10 | . 1 2 3 4 Weapon 6 | . . . 3 3 Highest Loss Streak 5 | . 1 2 2 5 To Critical Strikes 2 | . . 1 . 1 Average Slot Usage (%) 85 | . 93 82 94 73 Engine 11 | . 14 13 9 6 Treads 23 | . 27 24 22 17 Device 3 | . . 4 6 . Storage 7 | . 15 3 9 7 Processor 3 | . . . 8 6 Hackware 1 | . . . . 5 Protection 11 | . 6 7 18 14 Energy Cannon 2 | . . . 7 1 Ballistic Gun 1 | . 12 . . . Ballistic Cannon 15 | . 10 22 10 11 Slashing Weapon 1 | . . 3 . 2 Naked Turns 40 | . . . . 40 Heaviest Build 83 | 14 36 32 69 83 Greatest Support 60 | 40 40 40 60 60 Greatest Overweight (x) 4 | . . 1 4 4 Average Overweight (x) . | . . . 1 . Largest Inventory Capacity 25 | 8 15 15 20 25 Average Capacity 12 | 7 10 7 17 16 Most Carried 20 | 2 11 14 20 20 Average Carried 10 | 1 7 6 15 15 Final Capacity 20 | 8 15 15 20 5 Final Carried 20 | 2 11 13 20 5 Class Distribution -------------------- 90% | Mutant 9% | Derelict-Mutant Dominant Class ---------------- Mutant | -10/Materials Mutant | -10/Subcaves Mutant | -8/Materials Mutant | -8/Garrison Resources | -11 -10 -10 -8 -8 ----------- Run | Yrd Mat Sub Mat Gar Matter Collected 2995 | 254 240 763 972 766 Remotely . | . . . . . Salvage Created 3222 | 48 482 462 1355 875 Parts 235 | 8 38 42 99 48 Haulers Intercepted 5 | . 2 . 3 . Recyclers Shooed 1 | . 1 . . . Parts Field Recycled . | . . . . . Retrieved Matter . | . . . . . Parts Self-Destructed 17 | . . 17 . . Prevented . | . . . . . Kills | -11 -10 -10 -8 -8 ------- Run | Yrd Mat Sub Mat Gar Combat Hostiles Destroyed 94 | . 12 21 30 31 Melee 2 | . . . . 2 Guns 10 | . 10 . . . Cannons 64 | . 2 21 18 23 AOE 17 | . . . 12 5 Classes Destroyed 18 | 1 6 3 6 2 Worker 1 | . 1 . . . Builder 4 | . . . 4 . Tunneler 5 | 3 . . 2 . Hauler 5 | . 2 . 3 . Recycler 2 | . . . 2 . Mechanic 1 | . . . 1 . Operator 3 | . 1 . 2 . Turret 2 | . . 2 . . Watcher 6 | . 2 . 4 . Swarmer 32 | . 6 9 7 10 Grunt 26 | . 6 . 12 8 Brawler 1 | . . . . 1 Duelist 2 | . . . 1 1 Sentry 13 | . . . 8 5 Specialist 1 | . . . . 1 Hunter 7 | . . . 2 5 Artisan 1 | . . 1 . . Subdweller 12 | . . 12 . . Best Kill Streak 7 | 2 7 5 7 6 Combat Bots Only 6 | . 3 3 6 6 Max Kills in Single Turn 3 | 1 1 1 3 3 Gunslinging . | . . . . . Exploded 3 | . . . 2 3 Melee 1 | . . . . 1 Uniques/NPCs Destroyed . | . . . . . Combat | -11 -10 -10 -8 -8 -------- Run | Yrd Mat Sub Mat Gar Hostile Shots Fired 618 | . 68 138 145 267 Missed 197 | . 14 54 42 87 Damage Taken 5320 | . 590 1156 1441 2133 Core 556 | . 110 52 86 308 Absorbed by Shields . | . . . . . Redirected to Shielding 15 | . 5 4 6 . Ignored by Resistances 198 | . . . 185 13 Regen/Repaired (Parts) 188 | . 72 . 116 . Core Remaining (%) 67 | 100 . 35 . . Volleys Fired 343 | 12 63 117 87 64 Largest 2 | 2 2 2 2 2 Hottest 117 | 70 70 100 117 117 Shots Fired 613 | 24 125 179 162 123 Gun 133 | 24 109 . . . Cannon 423 | . 16 135 152 120 Launcher 13 | . . . 10 3 Special 44 | . . 44 . . Kinetic 461 | 12 95 135 120 99 Thermal 86 | 12 30 44 . . Explosive 7 | . . . 4 3 Electromagnetic 59 | . . . 38 21 Robot Hit Streak 39 | 4 9 11 14 39 Robot Miss Streak 4 | 2 4 3 3 3 Penetration Max . | . . . . . Secondary Targets 1 | . 1 . . . Max Gunslinging Chain 1 | . 1 . . . Shots Hit Robots 396 | 15 71 114 108 88 Core Hits 184 | 4 34 40 65 41 Critical Kills . | . . . . . Critical Parts Destroyed . | . . . . . Critical Strikes 15 | . 2 5 5 3 Burn 1 | . 1 . . . Blast 11 | . 1 5 3 2 Corrupt 1 | . . . 1 . Sever 2 | . . . 1 1 Melee Attacks 28 | . . 10 4 14 Impact . | . . . . . Slashing 28 | . . 10 4 14 Piercing . | . . . . . Sneak Attacks 4 | . . 1 3 . Combat Hostiles . | . . . . . Follow-up Attacks . | . . . . . Damage Inflicted 9701 | 167 753 2059 4041 2681 Guns 758 | 165 593 . . . Cannons 6198 | . 151 1825 2251 1971 Explosions 1931 | . . . 1505 426 Melee 599 | . . 66 271 262 Ramming 47 | 2 9 . 14 22 Kinetic 6001 | 62 527 1825 2153 1434 Thermal 1087 | 103 217 168 538 61 Explosive 709 | . . . 344 365 Electromagnetic 1258 | . . . 721 537 Impact . | . . . . . Slashing 599 | . . 66 271 262 Piercing . | . . . . . Highest Corruption 5 | . . . . 5 Average Corruption 5 | . . . . 5 Corruption Purged . | . . . . . Corruption Blocked . | . . . . . Effects 1 | . . . . 1 Message Errors 1 | . . . . 1 Overload Shots . | . . . . . Overflow Damage 347 | . . 36 246 65 Projectiles 62 | . . . 7 55 Explosions 196 | . . . 195 1 Melee 89 | . . 36 44 9 Knockbacks 48 | . 2 14 18 14 Impact . | . . . . . Kinetic 47 | . 2 14 17 14 Secondary 1 | . . . 1 . Self-Inflicted Damage 146 | . . . 126 20 Shots 7 | . . . 5 2 Rammed 16 | 2 5 . 4 5 Targets Rammed 16 | 2 5 . 4 5 Kicked . | . . . . . Crushed . | . . . . . Highest Temperature 408 | 110 336 24 408 391 Average Temperature 103 | 45 114 11 98 111 Received Heat Transfer 1290 | . 207 216 558 309 Effects 9 | . . . 9 . Shutdowns 1 | . . . 1 . Energy Bleed 1 | . . . 1 . Interference 6 | . . . 6 . Damage (minor) 1 | . . . 1 . Siege Activations . | . . . . . Robots Corrupted 2 | . . . 1 1 Combat Hostiles 1 | . . . . 1 Parts Fried 7 | . . . 3 4 Impact Corruptions . | . . . . . Robots Melted . | . . . . . Combat Hostiles . | . . . . . Parts Melted 1 | . . . . 1 Heat Transferred 1849 | 296 703 350 450 50 Parts Sabotaged . | . . . . . Parts Stolen . | . . . . . Parts Stripped . | . . . . . Power Chain Reactions 2 | . . . 1 1 Alert | -11 -10 -10 -8 -8 ------- Run | Yrd Mat Sub Mat Gar Peak Influence 1692 | 15 187 . 757 1692 Initial 408 | . 9 . 316 408 Average 565 | 5 62 . 559 1084 Maximum Alert Level 5 | . . . 3 5 Low Security (%) 28 | 100 100 . . . Level 1 5 | . . . 13 . Level 2 38 | . . . 76 16 Level 3 13 | . . . 10 33 Level 4 13 | . . . . 47 Level 5 . | . . . . 2 High Security . | . . . . . Max Security . | . . . . . Squads Dispatched 4 | . 1 . 3 . Investigation . | . . . . . Extermination . | . . . . . Reinforcement 4 | . 1 . 3 . Assault . | . . . . . Garrison . | . . . . . Intercept . | . . . . . Searches Triggered . | . . . . . Construction Impeded . | . . . . . Haulers Reinforced . | . . . . . Active Scanning Responses . | . . . . . Cargo Convoy Interrupts . | . . . . . Stealth | -11 -10 -10 -8 -8 --------- Run | Yrd Mat Sub Mat Gar Distress Signals 10 | . 3 . 7 . Communications Jammed . | . . . . . Distress Signals . | . . . . . Times Spotted 165 | . 23 52 48 42 Peak Tracking Total 9 | . 5 6 8 9 Tactical Retreats 11 | . 1 3 1 6 Traps | -11 -10 -10 -8 -8 ------- Run | Yrd Mat Sub Mat Gar Traps Triggered 11 | . 1 2 1 7 Indirectly . | . . . . . Trap Hack Attempts . | . . . . . Triggered . | . . . . . Disarmed . | . . . . . Reprogrammed . | . . . . . Reused 1 | . . . 1 . Traps Extracted . | . . . . . Installed 1 | . . . 1 . Triggered 1 | . . . 1 . Most Traps Carried 1 | . . 1 1 . Machines | -11 -10 -10 -8 -8 ---------- Run | Yrd Mat Sub Mat Gar Machines Disabled 10 | . . . 7 3 Max in Single Turn 4 | . . . 4 1 Garrison Relay 3 | . . . . 3 Machines Repaired . | . . . . . Machines Dismantled . | . . . . . Machines Sabotaged . | . . . . . Overloaded Fab Kills . | . . . . . Hacking | -11 -10 -10 -8 -8 --------- Run | Yrd Mat Sub Mat Gar Machines Accessed 21 | . 8 1 11 1 Terminals 15 | . 6 . 8 1 Fabricators . | . . . . . Repair Stations 2 | . 1 . 1 . Recycling Units 1 | . 1 . . . Scanalyzers 1 | . . . 1 . Garrison Access 1 | . . . 1 . Total Hacks 53 | . 21 2 28 2 Successful 29 | . 13 2 14 . Failed 23 | . 8 . 13 2 Catastrophic 5 | . 2 . 2 1 Database Lockouts 1 | . . . 1 . Manual 30 | . 13 1 16 . Terminals 41 | . 17 . 22 2 Fabricators . | . . . . . Repair Stations 7 | . 3 . 4 . Recycling Units 1 | . 1 . . . Scanalyzers 1 | . . . 1 . Garrison Access 1 | . . . 1 . Terminal Hacks 18 | . 7 2 9 . Record 2 | . . 2 . . Part Schematic 2 | . 2 . . . Robot Analysis 4 | . 2 . 2 . Prototype ID Bank 1 | . . . 1 . Terminal Index 1 | . . . 1 . Unreport Threat 2 | . . . 2 . Locate Traps 2 | . 2 . . . Dispatch Records 1 | . . . 1 . Security Status 1 | . 1 . . . Hauler Manifests 1 | . . . 1 . Zone Layout 1 | . . . 1 . Fabricator Hacks . | . . . . . Repair Station Hacks 4 | . 2 . 2 . Scan Component 2 | . 1 . 1 . Repair 2 | . 1 . 1 . Recycling Unit Hacks 1 | . 1 . . . Retrieve Components 1 | . 1 . . . Scanalyzer 1 | . . . 1 . Insert Component 1 | . . . 1 . Garrison Access Hacks 1 | . . . 1 . Unlock Access 1 | . . . 1 . Unauthorized Hacks 4 | . 3 . 1 . Terminals 4 | . 3 . 1 . Assimilate 1 | . 1 . . . Botnet 2 | . 1 . 1 . Operators 1 | . 1 . . . Fabricators . | . . . . . Repair Stations . | . . . . . Recycling Units . | . . . . . Scanalyzers . | . . . . . Garrison Access . | . . . . . Data Cores Recovered . | . . . . . Used . | . . . . . Hacking Detections 18 | . 7 . 10 1 Full Trace Events 2 | . . . 1 1 Feedback Events . | . . . . . Feedback Blocked . | . . . . . Robot Schematics Acquired . | . . . . . Robots Built . | . . . . . Authchips . | . . . . . Time . | . . . . . Total Robot Build Rating . | . . . . . Part Schematics Acquired 2 | . 2 . . . Parts Built . | . . . . . Authchips . | . . . . . Time . | . . . . . Total Part Build Rating . | . . . . . Parts Repaired 2 | . 1 . 1 . Time 52 | . 26 . 26 . Parts Recycled . | . . . . . Recycled Matter . | . . . . . Retrieved Matter . | . . . . . Retrieved Components 9 | . 9 . . . Parts Scanalyzed . | . . . . . Part Schematics Acquired . | . . . . . Parts Damaged . | . . . . . Bothacking | -11 -10 -10 -8 -8 ------------ Run | Yrd Mat Sub Mat Gar Used RIF Installer 1 | . . . . 1 Robots Hacked . | . . . . . Non-combat . | . . . . . Combat . | . . . . . Robot Hacks Applied . | . . . . . Relay Couplers Released 11 | . . . . 11 Machine Destruction 11 | . . . . 11 Fabnet Peak Effective % . | . . . . . Robots Rewired . | . . . . . Allies Hacked . | . . . . . Hacks Repelled . | . . . . . Allies | -11 -10 -10 -8 -8 -------- Run | Yrd Mat Sub Mat Gar Total Allies 1 | . 1 . . . Largest Group 1 | . 1 . . . Highest-Rated Group 10 | . 10 . . . Highest-Rated Ally 10 | . 10 . . . Total Orders . | . . . . . Ally Attacks . | . . . . . Total Damage . | . . . . . Kills . | . . . . . Allies Corrupted . | . . . . . Allies Melted . | . . . . . Intel | -11 -10 -10 -8 -8 ------- Run | Yrd Mat Sub Mat Gar Robot Analysis Total 4 | . 2 . 2 . Derelict Logs Recovered 1 | . . 1 . . Drone Launches . | . . . . . Drone Recoveries . | . . . . . Exploration | -11 -10 -10 -8 -8 ------------- Run | Yrd Mat Sub Mat Gar Turns Passed 11018 | 228 1618 4438 2883 1851 Spaces Moved 5140 | 112 854 2302 1182 690 Core 136 | 2 . . . 134 Treads 4766 | 110 854 2302 944 556 Legs . | . . . . . Wheels 238 | . . . 238 . Hover . | . . . . . Flight . | . . . . . Fastest Speed 50 | 50 160 160 110 50 Average Speed 180 | 158 160 169 207 197 Slowest Speed 480 | 160 160 260 260 480 Overloaded Moves . | . . . . . Propulsion Burnouts . | . . . . . Robots Hopped . | . . . . . Cave-ins Triggered . | . . . . . Exploration Rate (%) 68 | 6 97 87 90 64 Regions Visited 4 Branch Regions 1 Pre-discovered Areas . | . . . . . Known Exits Taken 1 | . . . 1 . Unknown Exits Taken 3 | 1 1 1 . . Scrap Searched 11 | . . 11 . . Spaces Dug 7 | . . 2 3 2 Terrain Destroyed 152 | . . 2 126 24 Melee 4 | . . 2 . 2 Projectile 9 | . . . 9 . AOE 139 | . . . 117 22 Terrain Rammed . | . . . . . Walls Destroyed . | . . . . . Machines Disabled . | . . . . . Actions | -11 -10 -10 -8 -8 --------- Run | Yrd Mat Sub Mat Gar Total 6160 | 137 994 2552 1447 1030 Wait 411 | 3 47 67 88 206 Move 5137 | 111 853 2301 1182 690 Hop . | . . . . . Pick Up 69 | 2 10 17 21 19 Fast Attach 42 | 7 6 10 13 6 Attach 17 | . . 2 9 6 Detach 11 | . 2 . 8 1 Swap 33 | . 2 13 14 4 Drop 35 | . 6 12 16 1 Fire 343 | 12 63 117 87 64 Melee 28 | . . 10 4 14 Ram 1 | . . . 1 . Kick . | . . . . . Crush 15 | 2 5 . 3 5 Escape Stasis 14 | . . . . 14 Rewire . | . . . . . Trap 1 | . . . 1 . Miscellaneous 3 | . . 3 . . Route ------- -11/Scrapyard -10/Materials (discovered 5 exits: [*Mat x3] / [*Min] / *Sub) -10/Subcaves (discovered 3 exits: *Mat x2 / [*Rec]) -8/Materials (discovered 3 exits: *Fac x2 / Gar) -8/Garrison (discovered 3 exits: *Fac x3) History --------- Turn | Location | Event 66 | -11/Scrapyard | Discovered new exit (range 12) 229 | -11/Scrapyard | Entered Materials 321 | -10/Materials | Build established: Mutant 365 | -10/Materials | Discovered new exit (range 13) 477 | -10/Materials | Discovered new exit (range 14) 687 | -10/Materials | Discovered new exit (range 5) 1029 | -10/Materials | Repaired Lgt. Treads 1162 | -10/Materials | Discovered new exit (range 9) 1809 | -10/Materials | Discovered new exit (range 12) 1847 | -10/Materials | Entered Subcaves 1975 | -10/Subcaves | Core integrity fell below 50% 2406 | -10/Subcaves | Visited triangular shrine 2417 | -10/Subcaves | Found Prototype Device 2473 | -10/Subcaves | A swath of the cavern ceiling suddenly collapsed 2528 | -10/Subcaves | Disturbed a concealed Subdweller 3128 | -10/Subcaves | Learned 2 Materials zone layouts 3705 | -10/Subcaves | A swath of the cavern ceiling suddenly collapsed 3885 | -10/Subcaves | Shifting Twisted Machinery released Sub. Shrapnel Launcher 4039 | -10/Subcaves | Discovered new exit (range 16) 4147 | -10/Subcaves | Shifting Twisted Machinery released Riot Gun 4149 | -10/Subcaves | Shifting Twisted Machinery released Sub. Power Source 4234 | -10/Subcaves | Visited Clippyterm 4239 | -10/Subcaves | Learned Research security intel 4239 | -10/Subcaves | Learned Factory emergency access door positions 4331 | -10/Subcaves | Shifting Twisted Machinery released Mak. Axe 4676 | -10/Subcaves | Discovered new exit (range 5) 4718 | -10/Subcaves | Discovered new exit (range 9) 5239 | -10/Subcaves | Build established: Derelict-Mutant 5668 | -10/Subcaves | Ambushed by angry Subdweller bent on revenge 5969 | -10/Subcaves | Build established: Mutant 6285 | -10/Subcaves | Entered Materials 6285 | -8/Materials | Evolved 4 slots: Propulsion x1, Utility x3 6286 | -8/Materials | Identified exit to Factory 6393 | -8/Materials | Identified V3-11A's Pendant 7319 | -8/Materials | Repaired Lgt. Treads 7383 | -8/Materials | Discovered exit to Factory (range 4) 8945 | -8/Materials | Central database locked down 9168 | -8/Materials | Identified exit to Garrison 9168 | -8/Materials | Entered Garrison 9218 | -8/Garrison | Triggered checkpoint 9226 | -8/Garrison | Garrison Relay disabled 9340 | -8/Garrison | Triggered checkpoint 9356 | -8/Garrison | Triggered checkpoint 9566 | -8/Garrison | Triggered checkpoint 9639 | -8/Garrison | Discovered exit to Factory (range 12) 9832 | -8/Garrison | Lost 3 parts (2n1u) 9965 | -8/Garrison | Discovered exit to Factory (range 10) 10018 | -8/Garrison | Triggered checkpoint 10078 | -8/Garrison | Triggered checkpoint 10137 | -8/Garrison | Garrison Relay disabled 10314 | -8/Garrison | Triggered checkpoint 10365 | -8/Garrison | Garrison Relay disabled 10469 | -8/Garrison | Spotted B-75 Beast 10469 | -8/Garrison | Spotted B-75 Beast 10504 | -8/Garrison | Released all parts (6) 10510 | -8/Garrison | Discovered exit to Factory (range 15) 10533 | -8/Garrison | Lost 5 parts (1p1n2u1w) 10639 | -8/Garrison | Installed Relay Interface Framework 10773 | -8/Garrison | Core integrity fell below 50% 10780 | -8/Garrison | Triggered checkpoint 11019 | -8/Garrison | Self-destructed Last Messages --------------- 10743_ Lgt. Treads destroyed. 10763_ Dropped Huge Storage Unit. 10789_ Lgt. Treads destroyed. 10790_ Destroyed Heat Sink. 10798_ Heat Sink melted. 10798_ Y-45 Defender destroyed. 10902_ Acquired 30 matter. 10903_ Acquired Lgt. Treads. 10906_ Acquired Lgt. Armor Plating. 10907_ Acquired 20 matter. 10947_ B-36 Bruiser springs to life. 10968_ ALERT: Garrison interior compromised. 10968_ B-36 Bruiser Rnf. Ion Engine severed. 10970_ B-36 Bruiser destroyed. 10975_ Critical hit (Smash). 10975_ Mak. Axe destroyed. 10975_ System corrupted by crushing effect (+5). 10978_ Acquired Lgt. Armor Plating. 11002_ ,THHJ8C3QJ 6HD,LTS:,NHMGQZMPFZQWN1G 11018_ Lgt. Armor Plating destroyed. Map ----- +----------------------------------------------------+ | | | | | | | | | | | | | | | | | ?????????????????????????????????????????????????? | | ?????????????????????????????????????????????????? | | ?????????????????????????????????????????????????? | | ?????????????????????????????????????????????????? | | ?????????????????????????????????????????????????? | | ?????????????????????????????????????????????????? | | ?????????????????????????????????????????????????? | | ?????????????????????????????????????????????????? | | ?????????????????????????????????????????????????? | | ?????????????????????????????????????????????????? | | ???????????#######??#######??????????????????????? | | ???????????#"""" #### #??????????????????????? | | ???????????#" # < #??????????????????????? | | ???????????#"""" ## # #??????????????????????? | | ???????????######## "## #??????????????????????? | | ??????????????????# ### #??????????????????????? | | ??????????????????# #?# #??????????????????????? | | ??????????????????# #?# @#??????????????????????? | | ??????????????????# #?# #??????????????????????? | | ????????????####### #?# b #??????????????????????? | | ??????????### #?# #??????????????????????? | | ??????????#! ###### #?# #???????#####??????????? | | ??????????#! #????# #?# #???????! ?????????? | | ??????????#!=#????# #?# ;???????! ?????????? | | ??????????##*#???###### #???????! ??????????? | | ?#""???????#%#???# *%## #??????? ??????????? | | ### ######=##### ##BB #???????! ??????????? | | BB #???????! ???????????? | | #???????! ???????????? | | ####################### #???????# #???????????? | | ??????????????????????# ###?##??# #???????????? | | ??????????????????????# # ## #??# #???????????? | | ??????????????????????# # ]#???# #??????###### | | ??????????????######### % !####" #??????# | | ?????????? === [ !!!!/!] ! #??????# | | ?????????? *%% %= *!!!! #??????# ### | | ???????????# #####"""## % !%%####% #??????# #?? | | ?????????????????????# * #!##??# #??????# ^#?? | | ?????????????????????# # # #???# #??????# ^#?? | | ?????????????????????## ### #???# #??????# ^#?? | | ???????????????????? # #?# #???# ######## #?? | | ???????????????????#### #?# #???# ## ## #?? | +----------------------------------------------------+ Best States ------------- Heat Dissipation 45 Energy Generation 15 Energy Capacity 280 Matter Stores 300 Matter Capacity 300 Sight Range 21 Terrain Scan Density 10 Armor Coverage 800 Resistance: KI 20 Resistance: TH 10 Core Shielding 20 Evasion (%) 50 Targeting Accuracy 8 Recoil Reduction 3 Offensive Hacking 10 Authchip Count 2 Item Schematics ----------------- Huge Storage Unit | -10/Materials | Hacked Cargo Storage Unit | -10/Materials | Hacked Robot Schematics ------------------ None Fabricated ------------ Nothing Alien Tech Used ----------------- None Achievements -------------- None Challenges ------------ None Game ------ Seed BarrageInsulationTearclaws Manual? 0 Play Time 00:48:24 Cumulative 276.1 hours Start 2024.03.10 @ 08:17:40 End 2024.03.10 @ 09:26:05 Sessions 1 Manual Loads 0 Difficulty Rogue Special Mode None Game No. 190 Rogue 190 Adventurer 0 Explorer 0 Win Type - Total 12 Types 8/1/1/1/0/0/0/1/0 Lore% 69 Gallery% 79 Achievement% 71 Wizard Run 0 Options --------- Layout 0 ASCII 0 Keyboard 1 Movement Numpad Keybinds 0 Fullscreen 2 Font 18/SmallcapsGlow Map View 76x50 Zoom Use 0% Tactical HUD 1 Map Filters NONE Filters NONE Steam 1 RUN: 00528fff-873e-41f9-9031-cab2d9f42c65